Cogmind - Beta 14 @@@ ROGUE MODE // 2025.01.13 @ 20:01:38 Player: celerysam Result: Destroyed by D-53 Grenadier with Mini Grenade Launcher Performance ------------- Evolutions (1) 500 Regions Visited (3) 600 Robots Destroyed (18) 90 Value Destroyed (447) 447 Prototype IDs (0) 0 Alien Tech Used (0) 0 Bonus (66) 66 TOTAL SCORE: 1703 Bonus ------- Follower Combat Kills 66 Cogmind --------- Core Integrity 0/400 Matter 295/300 Energy 80/100 System Corruption 0% Temperature Cool (0) Movement Core (50) Location -9/Mines Parts ------- > --- POWER (1) -------- (None) > --- PROPULSION (3) --- (None) > --- UTILITY (3) ------ Sensor Array > --- WEAPON (2) ------- (None) > --- INVENTORY (5) ---- Improved Ion Engine Light Treads Light Treads Aluminum Leg Katana Peak State ------------ > --- POWER ------------ Improved Ion Engine > --- PROPULSION ------- Aluminum Leg Improved Aluminum Leg Makeshift Leg > --- UTILITY ---------- Small Storage Unit Structural Scanner Melee Analysis Suite > --- WEAPON ----------- EM Pulse Gun Beam Rifle > --- INVENTORY -------- Improved Ion Engine Light Treads Light Treads Light Treads Aluminum Leg Sensor Array Katana [Rating: 18] Favorites ----------- Power Ion Engine Engine Ion Engine Propulsion Compact Wheel Leg Aluminum Leg Wheel Compact Wheel Utility Small Storage Unit Device Structural Scanner Storage Small Storage Unit Processor Melee Analysis Suite Protection Light Armor Plating Weapon Small Laser Energy Gun Small Laser Ballistic Gun Assault Rifle Slashing Weapon Katana Build | -11 -10 -9 -9 ------- Run | Yrd Mat Mat Min Slots Evolved 2 | . . 2 . Power . | . . . . Propulsion 1 | . . 1 . Utility 1 | . . 1 . Weapon . | . . . . Parts Attached 25 | 6 1 14 4 Power 5 | 1 . 3 1 Engine 5 | 1 . 3 1 Core . | . . . . Reactor . | . . . . Propulsion 7 | 2 . 4 1 Treads . | . . . . Leg 4 | . . 3 1 Wheel 3 | 2 . 1 . Hover . | . . . . Flight . | . . . . Utility 5 | 1 1 2 1 Device 2 | . 1 . 1 Storage 1 | 1 . . . Processor 1 | . . 1 . Hackware . | . . . . Protection 1 | . . 1 . Artifact . | . . . . Weapon 8 | 2 . 5 1 Energy Gun 5 | 2 . 2 1 Energy Cannon . | . . . . Ballistic Gun 2 | . . 2 . Ballistic Cannon . | . . . . Launcher . | . . . . Special Weapon . | . . . . Impact Weapon . | . . . . Slashing Weapon 1 | . . 1 . Piercing Weapon . | . . . . Special Melee Weapon . | . . . . Unidentified Prototypes . | . . . . Parts Lost 14 | . . 4 10 Power 2 | . . 1 1 Propulsion 5 | . . 2 3 Utility 4 | . . 1 3 Weapon 3 | . . . 3 Highest Loss Streak 9 | . . 4 9 To Critical Strikes . | . . . . Average Slot Usage (%) 92 | . 96 91 91 Engine 11 | . 14 9 10 Leg 19 | . . 21 31 Wheel 11 | . 28 9 . Device 10 | . 10 11 10 Storage 11 | . 14 11 10 Processor 6 | . . 6 11 Energy Gun 14 | . 28 7 13 Ballistic Gun 4 | . . 8 2 Slashing Weapon 2 | . . 5 . Peak Build Rating 18 | 6 7 15 18 Average Rating 11 | 4 6 11 15 On Entrance 7 | . 6 7 15 Naked Turns . | . . . . Heaviest Build 21 | 12 13 18 21 Greatest Support 48 | 32 32 48 43 Greatest Overweight (x) 4 | . . 1 4 Average Overweight (x) . | . . . . Largest Inventory Capacity 8 | 8 8 8 8 Average Capacity 7 | 6 8 8 7 Most Carried 8 | 6 8 8 8 Average Carried 7 | 4 7 7 7 Final Capacity 8 | 8 8 8 5 Final Carried 8 | 6 8 8 5 Class Distribution -------------------- 55% | Scavenger-Mutant 44% | Mutant Dominant Class ---------------- Mutant | -10/Materials Scavenger-Mutant | -9/Materials Scavenger-Mutant | -9/Mines Resources | -11 -10 -9 -9 ----------- Run | Yrd Mat Mat Min Matter Collected 519 | 168 31 263 57 Remotely . | . . . . Salvage Created 577 | . 186 319 72 Parts 43 | . 14 23 6 Haulers Intercepted . | . . . . Recyclers Shooed 2 | . . 2 . Parts Field Recycled . | . . . . Retrieved Matter . | . . . . Parts Self-Destructed . | . . . . Prevented . | . . . . Kills | -11 -10 -9 -9 ------- Run | Yrd Mat Mat Min Combat Hostiles Destroyed 15 | . 4 6 5 Guns 15 | . 4 6 5 Classes Destroyed 7 | . 2 4 1 Worker 1 | . . 1 . Builder 1 | . 1 . . Watcher 1 | . . 1 . Swarmer 5 | . . . 5 Grunt 7 | . 4 3 . Duelist 1 | . . 1 . Sentry 2 | . . 2 . Best Kill Streak 3 | . 2 3 3 Combat Bots Only 3 | . 2 3 3 Max Kills in Single Turn 2 | . 1 2 1 Gunslinging . | . . . . Exploded . | . . . . Melee . | . . . . Uniques/NPCs Destroyed . | . . . . Combat | -11 -10 -9 -9 -------- Run | Yrd Mat Mat Min Hostile Shots Fired 133 | . 12 58 63 Missed 42 | . 7 21 14 Damage Taken 1573 | . 67 639 867 Core 433 | . 30 156 247 Absorbed by Shields . | . . . . Core Remaining (%) 94 | 100 88 . . Volleys Fired 73 | . 15 38 20 Largest 2 | . 2 2 2 Hottest 96 | . 80 80 96 Shots Fired 129 | . 30 66 33 Gun 129 | . 30 66 33 Cannon . | . . . . Launcher . | . . . . Special . | . . . . Kinetic 38 | . . 27 11 Thermal 89 | . 30 39 20 Explosive . | . . . . Electromagnetic 2 | . . . 2 Robot Hit Streak 7 | . 7 7 3 Robot Miss Streak 6 | . 3 5 6 Penetration Max . | . . . . Secondary Targets . | . . . . Shots Hit Robots 68 | . 16 39 13 Core Hits 29 | . 9 15 5 Critical Kills . | . . . . Critical Parts Destroyed . | . . . . Critical Strikes . | . . . . Melee Attacks 2 | . . 2 . Impact . | . . . . Slashing 2 | . . 2 . Piercing . | . . . . Sneak Attacks . | . . . . Combat Hostiles . | . . . . Follow-up Attacks . | . . . . Damage Inflicted 889 | . 200 512 177 Guns 859 | . 200 482 177 Cannons . | . . . . Explosions . | . . . . Melee 30 | . . 30 . Ramming . | . . . . Kinetic 279 | . . 230 49 Thermal 553 | . 200 252 101 Explosive . | . . . . Electromagnetic 27 | . . . 27 Impact . | . . . . Slashing 30 | . . 30 . Piercing . | . . . . Highest Corruption . | . . . . Average Corruption . | . . . . Corruption Purged . | . . . . Corruption Blocked . | . . . . Overload Shots . | . . . . Overflow Damage . | . . . . Projectiles . | . . . . Explosions . | . . . . Melee . | . . . . Knockbacks . | . . . . Impact . | . . . . Kinetic . | . . . . Secondary . | . . . . Self-Inflicted Damage . | . . . . Shots . | . . . . Rammed . | . . . . Targets Rammed . | . . . . Kicked . | . . . . Crushed . | . . . . Highest Temperature 114 | . 114 105 78 Average Temperature 32 | . 37 32 27 Received Heat Transfer 213 | . 36 171 6 Siege Activations . | . . . . Robots Corrupted . | . . . . Combat Hostiles . | . . . . Parts Fried . | . . . . Impact Corruptions . | . . . . Robots Melted . | . . . . Combat Hostiles . | . . . . Parts Melted . | . . . . Heat Transferred 1296 | . 450 587 259 Parts Sabotaged . | . . . . Parts Stolen . | . . . . Parts Stripped . | . . . . Power Chain Reactions . | . . . . Alert | -11 -10 -9 -9 ------- Run | Yrd Mat Mat Min Peak Influence 264 | . 156 264 220 Initial 65 | . . 65 24 Average 116 | . 58 145 146 Maximum Alert Level 1 | . . 1 1 Low Security (%) 86 | 100 100 84 74 Level 1 13 | . . 15 25 Level 2 . | . . . . Level 3 . | . . . . Level 4 . | . . . . Level 5 . | . . . . High Security . | . . . . Max Security . | . . . . Squads Dispatched 2 | . 2 . . Investigation . | . . . . Extermination . | . . . . Reinforcement 2 | . 2 . . Assault . | . . . . Garrison . | . . . . Intercept . | . . . . Searches Triggered . | . . . . Construction Impeded . | . . . . Haulers Reinforced . | . . . . Active Scanning Responses . | . . . . Cargo Convoy Interrupts . | . . . . Stealth | -11 -10 -9 -9 --------- Run | Yrd Mat Mat Min Distress Signals 4 | . 2 2 . Communications Jammed . | . . . . Distress Signals . | . . . . Times Spotted 37 | . 10 15 12 Peak Tracking Total 6 | . 3 5 6 Tactical Retreats 2 | . . 1 1 Traps | -11 -10 -9 -9 ------- Run | Yrd Mat Mat Min Traps Triggered . | . . . . Indirectly . | . . . . Trap Hack Attempts . | . . . . Triggered . | . . . . Disarmed . | . . . . Reprogrammed . | . . . . Reused . | . . . . Traps Extracted . | . . . . Installed . | . . . . Triggered . | . . . . Machines | -11 -10 -9 -9 ---------- Run | Yrd Mat Mat Min Machines Disabled . | . . . . Max in Single Turn . | . . . . Machines Repaired . | . . . . Machines Dismantled . | . . . . Machines Sabotaged . | . . . . Overloaded Fab Kills . | . . . . Hacking | -11 -10 -9 -9 --------- Run | Yrd Mat Mat Min Machines Accessed 4 | . 3 1 . Terminals 4 | . 3 1 . Fabricators . | . . . . Repair Stations . | . . . . Recycling Units . | . . . . Scanalyzers . | . . . . Garrison Access . | . . . . Total Hacks 9 | . 6 3 . Successful 5 | . 4 1 . Failed 4 | . 2 2 . Catastrophic . | . . . . Database Lockouts . | . . . . Manual 6 | . 4 2 . Terminals 9 | . 6 3 . Fabricators . | . . . . Repair Stations . | . . . . Recycling Units . | . . . . Scanalyzers . | . . . . Garrison Access . | . . . . Terminal Hacks 2 | . 1 1 . Alert Level 1 | . . 1 . Locate Traps 1 | . 1 . . Fabricator Hacks . | . . . . Repair Station Hacks . | . . . . Recycling Unit Hacks . | . . . . Scanalyzer . | . . . . Garrison Access Hacks . | . . . . Unauthorized Hacks 3 | . 3 . . Terminals 3 | . 3 . . Botnet 3 | . 3 . . Fabricators . | . . . . Repair Stations . | . . . . Recycling Units . | . . . . Scanalyzers . | . . . . Garrison Access . | . . . . Data Cores Recovered . | . . . . Used . | . . . . Hacking Detections 4 | . 3 1 . Full Trace Events . | . . . . Feedback Events . | . . . . Feedback Blocked . | . . . . Robot Schematics Acquired . | . . . . Robots Built . | . . . . Authchips . | . . . . Time . | . . . . Total Robot Build Rating . | . . . . Part Schematics Acquired . | . . . . Parts Built . | . . . . Authchips . | . . . . Time . | . . . . Total Part Build Rating . | . . . . Parts Repaired . | . . . . Time . | . . . . Parts Recycled . | . . . . Recycled Matter . | . . . . Retrieved Matter . | . . . . Retrieved Components . | . . . . Parts Scanalyzed . | . . . . Part Schematics Acquired . | . . . . Parts Damaged . | . . . . Bothacking | -11 -10 -9 -9 ------------ Run | Yrd Mat Mat Min Used RIF Installer . | . . . . Robots Hacked . | . . . . Non-combat . | . . . . Combat . | . . . . Robot Hacks Applied . | . . . . Relay Couplers Released . | . . . . Fabnet Peak Effective % . | . . . . Robots Rewired . | . . . . Allies Hacked . | . . . . Hacks Repelled . | . . . . Allies | -11 -10 -9 -9 -------- Run | Yrd Mat Mat Min Total Allies 2 | . . . 2 Largest Group 2 | . . . 2 Highest-Rated Group 51 | . . . 51 Highest-Rated Ally 31 | . . . 31 Total Orders . | . . . . Ally Attacks 24 | . . . 24 Total Damage 257 | . . . 257 Kills 6 | . . . 6 Allies Corrupted . | . . . . Allies Melted . | . . . . Intel | -11 -10 -9 -9 ------- Run | Yrd Mat Mat Min Robot Analysis Total . | . . . . Derelict Logs Recovered . | . . . . Drone Launches . | . . . . Drone Recoveries . | . . . . Exploration | -11 -10 -9 -9 ------------- Run | Yrd Mat Mat Min Turns Passed 1030 | 68 241 412 309 Spaces Moved 657 | 53 188 215 201 Core 7 | 4 . . 3 Treads . | . . . . Legs 344 | . . 146 198 Wheels 306 | 49 188 69 . Hover . | . . . . Flight . | . . . . Fastest Speed 50 | 50 100 100 50 Average Speed 111 | 96 100 114 124 Slowest Speed 250 | 100 100 190 250 Overloaded Moves . | . . . . Propulsion Burnouts . | . . . . Robots Hopped . | . . . . Cave-ins Triggered . | . . . . Exploration Rate (%) 26 | 5 32 23 44 Regions Visited 3 Branch Regions 1 Pre-discovered Areas . | . . . . Known Exits Taken . | . . . . Unknown Exits Taken 3 | 1 1 1 . Scrap Searched . | . . . . Spaces Dug 1 | . . 1 . Terrain Destroyed 1 | . . 1 . Melee 1 | . . 1 . Projectile . | . . . . AOE . | . . . . Terrain Rammed . | . . . . Walls Destroyed . | . . . . Machines Disabled . | . . . . Actions | -11 -10 -9 -9 --------- Run | Yrd Mat Mat Min Total 819 | 69 212 309 229 Wait 33 | . 2 30 1 Move 654 | 52 187 214 201 Hop . | . . . . Pick Up 23 | 11 5 6 1 Fast Attach 6 | 1 . 4 1 Attach 11 | 5 1 4 1 Detach . | . . . . Swap 8 | . . 6 2 Drop 9 | . 2 5 2 Fire 73 | . 15 38 20 Melee 2 | . . 2 . Ram . | . . . . Kick . | . . . . Crush . | . . . . Escape Stasis . | . . . . Rewire . | . . . . Trap . | . . . . Miscellaneous . | . . . . Route ------- -11/Scrapyard -10/Materials -9/Materials -9/Mines (discovered 1 exit: [*Mat]) History --------- Turn | Location | Event 27 | -11/Scrapyard | Discovered new exit (range 15) 69 | -11/Scrapyard | Entered Materials 291 | -10/Materials | Discovered new exit (range 14) 310 | -10/Materials | Entered another Materials area 310 | -9/Materials | Evolved 2 slots: Propulsion x1, Utility x1 331 | -9/Materials | Build established: Mutant 446 | -9/Materials | Lost 4 parts (1p2n1u) 644 | -9/Materials | Discovered new exit (range 7) 722 | -9/Materials | Entered Mines 752 | -9/Mines | Build established: Scavenger-Mutant 811 | -9/Mines | Core integrity fell below 50% 910 | -9/Mines | Discovered new exit (range 15) 1006 | -9/Mines | Assembled infested the area 1026 | -9/Mines | Core integrity fell below 20% 1031 | -9/Mines | Destroyed by D-53 Grenadier with Mini Grenade Launcher Last Messages --------------- 01016_ R-06 Scavenger destroyed. 01018_ U-05 Engineer lays Concrete. 01019_ U-05 Engineer destroyed. 01019_ EM Pulse Gun destroyed. 01021_ The unstable cave ceiling collapses. 01021_ U-05 Engineer lays Concrete. 01021_ Imp. Aluminum Leg destroyed. 01023_ U-05 Engineer lays Concrete. 01025_ The unstable cave ceiling collapses. 01026_ U-05 Engineer lays Concrete. 01027_ Mak. Leg destroyed. 01027_ Beam Rifle destroyed. 01027_ K-01 Serf destroyed. 01027_ Rnf. Ion Engine destroyed. 01027_ K-01 Serf destroyed. 01028_ U-05 Engineer builds a Wall. 01029_ Sml. Storage Unit destroyed. 01030_ The unstable cave ceiling collapses. 01031_ Acquired Sensor Array. 01031_ Melee Analysis Suite destroyed. Map ----- +----------------------------------------------------+ | ????????????????????????????????????????? | | ????????????????????????????????????????? | | ????????????????????????????????????????? | | ????????????????????????????????????????? | | ????????????????????????????????????????? | | ????????????????????????????????????????? | | ????????????????????????????????????????? | | ????????????????????????????????????????? | | ??????? ##??????????????????????????????? | | ??????? ##??????????????????????????????? | | ??????? #??????????????????? #####?????? | | ?????? % ???????????????????#######?????? | | ??????## ??????????????????#### ##?????? | | ?####### ##???????????????#### ##?????? | | ########%####????????????#### ##?????? | | ### * ####??????????#### ###?????? | | ## ###?????????#### ###??????? | | ## ##?????????### ###??????? | | ## ##?????????## ###???????? | | ## ###????????## ####???????? | | # ###???????### ####????????? | | # ##?????##### ###?????????? | | ## ##???### ##?????????? | | ##### ##??### < ##?????????? | | ##### ##??## = ##?????????? | | #### ##### =@ ##?????????? | | ### ## ! ##?????????? | | # % = ##?????????? | | ### % dd ##?????????? | | ### * ##?????????? | | ### # ##?????????? | | ## ## %#####??????? | | ## ## ## ### %#####??????? | | ## ### ## # # ### ##??????? | | ## #### ### # ####""" ##??????? | | ## ##### ##### # # #####""" ##??????? | | ## ##### ##??#########?##""" ##??????? | | ## ##### ##????????????##""" ##??????? | | ##????????????## ##??????? | | ##????????????##########??????? | | ############????????????##########??????? | | ############????????????????????????????? | | ##??????????????????????????????????????? | | ##??????????????????????????????????????? | | ##??????????????????????????????????????? | | ????????????????????????????????????????? | | | | | | | | | +----------------------------------------------------+ Best States ------------- Heat Dissipation 28 Energy Generation 12 Energy Capacity 265 Matter Stores 300 Matter Capacity 300 Sight Range 16 Terrain Scan Density 10 Armor Coverage 150 Evasion (%) 55 Melee Accuracy 5 Item Schematics ----------------- None Robot Schematics ------------------ None Fabricated ------------ Nothing Alien Tech Used ----------------- None Achievements -------------- None Challenges ------------ None Game ------ Seed NeutronQuantumPendant Manual? 0 Play Time 00:16:07 Cumulative 189.4 hours Start 2025.01.13 @ 19:45:11 End 2025.01.13 @ 20:01:38 Sessions 1 Manual Loads 0 Difficulty Rogue Special Mode None Game No. 258 Rogue 258 Adventurer 0 Explorer 0 Win Type - Total 1 Types 1/0/0/0/0/0/0/0/0 Lore% 32 Gallery% 62 Achievement% 42 Wizard Run 0 Options --------- Layout 1 ASCII 0 Keyboard 0 Movement Mouse Keybinds 0 Fullscreen 1 Font 24/Smallcaps Map View 50x35 Zoom Use 0% Tactical HUD 1 Map Filters NONE Filters NONE Steam 1 RUN: d27985c8-46c5-4513-8f8c-195e17f66b54